bitfinex/quotes_BTCUSD_20250205
["timestamp","ask_amount","ask_price","bid_price","bid_amount"]
[1738754486588,2.1358204,98002.0,98001.0,0.00022407]
[1738754486925,2.1378204,98002.0,98001.0,0.00022407]
[1738754487159,2.1358204,98002.0,98001.0,0.00022407]
[1738754487561,2.2070504,98002.0,98001.0,0.00022407]
[1738754487764,2.1358204,98002.0,98001.0,0.00022407]
[1738754491852,3.6358204,98002.0,98001.0,0.00022407]
[1738754492729,0.06123,98000.0,97994.0,0.00022407]
[1738754492916,0.25250365,97999.0,97994.0,0.00022407]
[1738754493102,0.76223365,97999.0,97994.0,0.00022407]
[1738754493646,0.96666365,97999.0,97994.0,0.00022407]
[1738754493800,0.99831684,97999.0,97994.0,0.00022407]
[1738754494001,0.07123,97995.0,97994.0,0.00022407]
[1738754494236,0.86511684,97995.0,97994.0,0.00022407]
[1738754495454,2.36511684,97995.0,97994.0,0.00022407]
[1738754495652,2.35511684,97995.0,97994.0,0.00022407]
[1738754495859,0.80288684,97995.0,97994.0,0.00022407]
[1738754496279,0.77123365,97995.0,97994.0,0.00022407]
[1738754496662,0.80293562,97995.0,97994.0,0.00022407]
[1738754497392,1.12693562,97995.0,97994.0,0.00022407]
[1738754498101,2.62693562,97995.0,97994.0,0.00022407]
[1738754498305,2.68816562,97995.0,97994.0,0.00022407]
[1738754499320,2.69816562,97995.0,97994.0,0.00022407]
[1738754499942,2.77986562,97995.0,97994.0,0.00022407]
[1738754501335,1.27986562,97995.0,97994.0,0.00022407]
[1738754501756,1.28086562,97995.0,97994.0,0.00022407]
[1738754502020,2.78086562,97995.0,97994.0,0.00022407]
[1738754503654,2.69916562,97995.0,97994.0,0.00022407]
[1738754506647,1.19916562,97995.0,97994.0,0.00022407]
[1738754507074,2.69916562,97995.0,97994.0,0.00022407]
[1738754510787,2.70325062,97995.0,97994.0,0.00022407]
[1738754513053,2.70347512,97995.0,97994.0,0.00022407]
[1738754514216,2.79470535,97995.0,97994.0,0.00022407]
[1738754517640,2.70347512,97995.0,97994.0,0.00022407]
[1738754526091,2.70247512,97995.0,97994.0,0.00022407]
[1738754526502,1.19347512,97995.0,97994.0,0.00022407]
[1738754526747,1.20347512,97995.0,97994.0,0.00022407]
[1738754527444,1.20247512,97995.0,97994.0,0.00022407]
[1738754527668,1.20347512,97995.0,97994.0,0.00022407]
[1738754527839,2.70347512,97995.0,97994.0,0.00022407]
[1738754528224,2.70447512,97995.0,97994.0,0.00022407]
[1738754529449,2.70247512,97995.0,97994.0,0.00022407]
[1738754529868,2.70447512,97995.0,97994.0,0.00022407]
[1738754530766,2.70247512,97995.0,97994.0,0.00022407]
[1738754530961,2.70447512,97995.0,97994.0,0.00022407]
[1738754531121,2.70247512,97995.0,97994.0,0.00022407]
[1738754531523,2.70447512,97995.0,97994.0,0.00022407]
[1738754533490,2.70247512,97995.0,97994.0,0.00022407]
[1738754533889,2.70447512,97995.0,97994.0,0.00022407]
[1738754534445,2.70647512,97995.0,97994.0,0.00022407]
[1738754534865,2.70247512,97995.0,97994.0,0.00022407]
[1738754535152,2.70547512,97995.0,97994.0,0.00022407]
[1738754535619,2.70247512,97995.0,97994.0,0.00022407]
[1738754536777,2.70547512,97995.0,97994.0,0.00022407]
[1738754536978,2.70247512,97995.0,97994.0,0.00022407]
[1738754537366,2.70447512,97995.0,97994.0,0.00022407]
[1738754537588,2.70247512,97995.0,97994.0,0.00022407]
[1738754538013,2.70447512,97995.0,97994.0,0.00022407]
[1738754538533,2.70647512,97995.0,97994.0,0.00022407]
[1738754540411,0.07123,97993.0,97982.0,0.00022428]
[1738754540606,0.07123,97983.0,97982.0,0.00022428]
[1738754540746,1.88689786,97983.0,97982.0,0.00022428]
[1738754540952,3.38689786,97983.0,97982.0,0.00022428]
[1738754541150,3.39222407,97983.0,97982.0,0.00022428]
[1738754542102,3.71622407,97983.0,97982.0,0.00022428]
[1738754543681,3.71722407,97983.0,97982.0,0.00022428]
[1738754544172,3.71822407,97983.0,97982.0,0.00022428]
[1738754544371,3.71622407,97983.0,97982.0,0.00022428]
[1738754544713,3.71722407,97983.0,97982.0,0.00022428]
[1738754544913,3.71622407,97983.0,97982.0,0.00022428]
[1738754545333,3.71722407,97983.0,97982.0,0.00022428]
[1738754546419,3.72968444,97983.0,97982.0,0.00022428]
[1738754546575,3.72868444,97983.0,97982.0,0.00022428]
[1738754546773,3.72968444,97983.0,97982.0,0.00022428]
[1738754547190,3.72868444,97983.0,97982.0,0.00022428]
[1738754547390,3.72968444,97983.0,97982.0,0.00022428]
[1738754547601,2.06968444,97983.0,97982.0,0.07662428]
[1738754547787,0.6627222,97983.0,97982.0,0.12652428]
[1738754548246,0.6617222,97983.0,97982.0,0.12652428]
[1738754548651,0.63202023,97983.0,97982.0,0.12652428]
[1738754549778,0.78002023,97983.0,97982.0,0.12652428]
[1738754551403,0.76755986,97983.0,97982.0,0.12652428]
[1738754557020,0.79933399,97983.0,97982.0,0.12652428]
[1738754558354,0.76755986,97983.0,97982.0,0.12652428]
[1738754560252,0.61755986,97983.0,97982.0,0.12652428]
[1738754560846,0.61755986,97983.0,97982.0,0.14952428]
[1738754564494,0.61755986,97983.0,97982.0,0.12652428]
[1738754578848,0.61755986,97983.0,97982.0,0.00022428]
[1738754579071,0.76755986,97983.0,97982.0,0.00022428]
[1738754579270,2.26755986,97983.0,97982.0,0.00022428]
[1738754579832,0.76755986,97983.0,97982.0,0.00022428]
[1738754580419,0.780192,97983.0,97982.0,0.00022428]
[1738754580542,0.81197722,97983.0,97982.0,0.00022428]
[1738754581128,2.31197722,97983.0,97982.0,0.00022428]
[1738754581942,0.81197722,97983.0,97982.0,0.00022428]
[1738754583517,0.89017722,97983.0,97982.0,0.00022428]
[1738754583945,0.91093346,97983.0,97982.0,0.00022428]
[1738754584548,0.89017722,97983.0,97982.0,0.00022428]
[1738754586581,1.21417722,97983.0,97982.0,0.00022428]
[1738754591847,1.13597722,97983.0,97982.0,0.00022428]
[1738754593095,1.20536722,97983.0,97982.0,0.00022428]
[1738754594269,0.82013722,97983.0,97982.0,0.00022428]
[1738754595793,0.88136722,97983.0,97982.0,0.00022428]
[1738754599139,0.849582,97983.0,97982.0,0.00022428]
[1738754599543,0.977682,97983.0,97982.0,0.00022428]
[1738754599747,0.92653741,97983.0,97982.0,0.00022428]
[1738754599945,1.20533741,97983.0,97982.0,0.00022428]
[1738754600350,2.70533741,97983.0,97982.0,0.00022428]
[1738754600547,1.20533741,97983.0,97982.0,0.00022428]
[1738754603036,1.20033741,97983.0,97982.0,0.00022428]
[1738754604357,1.20003741,97983.0,97982.0,0.00022428]
[1738754605633,2.71103741,97983.0,97982.0,0.00022428]
[1738754607146,2.78693741,97983.0,97982.0,0.00022428]
[1738754607717,2.78593741,97983.0,97982.0,0.00022428]
[1738754608174,2.78693741,97983.0,97982.0,0.00022428]
[1738754608303,2.78593741,97983.0,97982.0,0.00022428]
[1738754608508,1.28593741,97983.0,97982.0,0.00022428]
[1738754608802,1.28793741,97983.0,97982.0,0.00022428]
[1738754609029,2.78793741,97983.0,97982.0,0.00022428]
[1738754615562,0.06123,97979.0,97948.0,0.06302661]
[1738754615764,0.10250365,97949.0,97948.0,0.06302661]
[1738754615958,1.63396589,97949.0,97948.0,0.06302661]
[1738754616187,1.68362043,97949.0,97948.0,0.06302661]
[1738754616540,1.71294614,97949.0,97948.0,0.06302661]
[1738754619619,1.6823895,97949.0,97948.0,0.06302661]
[1738754627959,1.6823895,97949.0,97948.0,0.06313341]
[1738754630657,1.71294588,97949.0,97948.0,0.06313341]
[1738754631441,1.6823895,97949.0,97948.0,0.06313341]
[1738754634744,1.6823895,97949.0,97948.0,0.0001068]
[1738754635326,1.89894592,97949.0,97948.0,0.0001068]
[1738754636073,0.21123,97948.0,97947.0,0.00021049]
[1738754636268,0.85529416,97948.0,97947.0,0.00021049]
[1738754637412,0.87439206,97948.0,97947.0,0.00021049]
[1738754645348,0.85529416,97948.0,97947.0,0.00021049]
[1738754651726,0.85551866,97948.0,97947.0,0.00021049]
[1738754653147,0.87461263,97948.0,97947.0,0.00021049]
[1738754654765,0.87461263,97948.0,97936.0,0.0827]
[1738754654766,0.90516484,97948.0,97936.0,0.0827]
[1738754654980,0.10250365,97937.0,97936.0,0.0827]
[1738754655322,0.64406416,97937.0,97936.0,0.0827]
[1738754656130,0.69371034,97937.0,97933.0,0.0493]
[1738754656384,0.10250365,97934.0,97933.0,0.0493]
[1738754656586,0.64406416,97934.0,97933.0,0.0493]
[1738754657276,1.71544258,97934.0,97933.0,0.0493]
[1738754660925,0.15,97933.0,97918.0,0.01021264]
[1738754661096,0.25250365,97919.0,97918.0,0.01021264]
[1738754661401,3.3157964,97919.0,97918.0,0.01021264]
[1738754662023,1.92276155,97919.0,97918.0,0.01021264]
[1738754662279,0.07352905,97910.0,97896.0,0.1269069]
[1738754662468,0.10250365,97898.0,97897.0,0.00102137]
[1738754662673,0.10250365,97898.0,97896.0,0.1269069]
[1738754662844,0.61223365,97898.0,97896.0,0.1269069]
[1738754663955,0.04964618,97897.0,97896.0,0.1269069]
[1738754664131,0.66187983,97897.0,97896.0,0.1269069]
[1738754664571,1.68361207,97897.0,97896.0,0.1269069]
[1738754665473,0.66187983,97897.0,97896.0,0.1499069]
[1738754665676,0.55937618,97897.0,97896.0,0.1599069]
[1738754665871,0.55879455,97897.0,97896.0,0.1599069]
[1738754666729,0.55879455,97897.0,97896.0,0.16092811]
[1738754667201,0.55879455,97897.0,97896.0,0.1599069]
[1738754667520,0.55879455,97897.0,97896.0,0.17866638]
[1738754667922,0.50973,97897.0,97896.0,0.17866638]
[1738754668753,0.50973,97897.0,97896.0,0.19044313]
[1738754669314,0.50973,97897.0,97896.0,0.17168365]
[1738754670591,0.40066622,97897.0,97896.0,1.18940489]
[1738754670821,0.02699804,97897.0,97896.0,1.14230197]
[1738754671225,0.01903622,97897.0,97896.0,1.14230197]
[1738754671805,0.09136787,97945.0,97925.0,0.023]
[1738754672014,0.10250365,97940.0,97926.0,0.00102092]
[1738754672822,0.10250365,97940.0,97921.0,0.02157524]
[1738754672823,0.066835,97939.0,97922.0,0.00102097]
[1738754673176,0.066835,97939.0,97925.0,0.023]
[1738754673376,0.10250365,97933.0,97925.0,0.02402099]
[1738754673581,0.10250365,97933.0,97925.0,0.023]
[1738754673774,0.10250365,97933.0,97927.0,0.023]
[1738754674133,0.019035,97932.0,97927.0,0.023]
[1738754674328,0.10250365,97931.0,97928.0,0.00102103]
[1738754674535,0.10250365,97931.0,97926.0,0.00102097]
[1738754675782,0.019035,97930.0,97927.0,0.00102097]
[1738754675964,0.10250365,97929.0,97927.0,0.00102097]
[1738754676335,0.10250365,97929.0,97926.0,0.00102098]
[1738754676868,0.10250365,97929.0,97925.0,0.02412788]
[1738754677282,0.0494751,97928.0,97926.0,0.00102098]
[1738754677507,0.10250365,97927.0,97925.0,0.00112789]
[1738754677673,0.10250365,97927.0,97925.0,0.0001069]
[1738754678772,0.0494751,97926.0,97925.0,0.0001069]
[1738754679017,0.15197875,97926.0,97925.0,0.0001069]
[1738754679421,0.0494751,97926.0,97925.0,0.16539386]
[1738754679568,0.0494751,97926.0,97925.0,0.49569386]
[1738754679569,0.019035,97926.0,97925.0,0.49569386]
[1738754679769,0.019035,97926.0,97925.0,0.49467286]
[1738754681207,0.019035,97941.0,97938.0,0.01]
[1738754681416,0.019035,97941.0,97925.0,0.47467286]
[1738754681417,0.019035,97941.0,97940.0,0.033]
[1738754681633,0.019035,97941.0,97940.0,0.1211228]
[1738754682098,0.0002245,97948.0,97945.0,0.01]
[1738754682271,0.10250365,97947.0,97946.0,0.02402072]
[1738754682594,0.10250365,97947.0,97946.0,0.023]
[1738754682776,0.10250365,97947.0,97945.0,0.01102078]
[1738754682777,0.10250365,97947.0,97945.0,0.03402078]
[1738754682976,0.10250365,97947.0,97946.0,0.02211229]
[1738754683331,0.0002245,97948.0,97947.0,0.033]
[1738754683538,0.0002245,97948.0,97947.0,0.03402065]
[1738754683746,0.10272815,97948.0,97947.0,0.023]
[1738754684277,0.10272815,97948.0,97947.0,0.033]
[1738754689022,0.12176315,97948.0,97947.0,0.033]
[1738754689937,0.12176315,97948.0,97947.0,0.023]
[1738754690343,0.12176315,97948.0,97947.0,0.02969685]
[1738754690567,0.10272815,97948.0,97947.0,0.02969685]
[1738754691023,0.10272815,97948.0,97947.0,0.023]
[1738754696166,0.12176315,97948.0,97947.0,0.023]
[1738754697384,0.15222115,97948.0,97947.0,0.023]
[1738754699843,0.1284,97947.0,97945.0,0.01204603]
[1738754700100,0.23090365,97946.0,97925.0,0.0001069]
[1738754700299,0.23090365,97946.0,97925.0,0.0231069]
[1738754700300,0.0782,97932.0,97925.0,0.0231069]
[1738754700431,0.10250365,97929.0,97925.0,0.0001069]
[1738754700952,0.10250365,97926.0,97925.0,0.0001069]
[1738754701981,0.12153865,97926.0,97925.0,0.0001069]
[1738754704088,0.20393865,97926.0,97925.0,0.0001069]
[1738754704302,0.25263865,97926.0,97925.0,0.0001069]
[1738754704727,0.43306673,97926.0,97925.0,0.0001069]
[1738754704935,0.15,97925.0,97897.0,0.0001069]
[1738754705155,0.10250365,97902.0,97897.0,0.0001069]
[1738754705370,0.1275,97901.0,97897.0,0.0001069]
[1738754705520,0.10250365,97900.0,97897.0,0.0001069]
[1738754706083,0.10250365,97898.0,97897.0,0.0001069]
[1738754707835,0.12153865,97898.0,97897.0,0.0001069]
[1738754710568,0.10250365,97898.0,97897.0,0.0001069]
[1738754715148,0.10250365,97898.0,97897.0,0.0231069]
[1738754717386,0.10250365,97898.0,97897.0,0.03070051]
[1738754717798,0.10250365,97898.0,97897.0,0.02967916]
[1738754718434,0.049,97915.0,97903.0,0.023]
[1738754718767,0.10250365,97914.0,97906.0,0.033]
[1738754718996,0.10250365,97914.0,97908.0,0.023]
[1738754719232,0.10250365,97914.0,97909.0,0.00102114]
[1738754720368,0.10250365,97914.0,97910.0,0.00102114]
[1738754720814,0.10250365,97914.0,97907.0,0.033]
[1738754721334,0.10250365,97914.0,97905.0,0.1121516]
[1738754721335,0.10250365,97914.0,97906.0,0.01]
[1738754721759,0.10250365,97914.0,97907.0,0.023]
[1738754722097,0.10250365,97914.0,97906.0,0.033]
[1738754722324,0.10250365,97914.0,97907.0,0.0396717]
[1738754723841,0.10250365,97914.0,97907.0,0.023]
[1738754724251,0.10250365,97914.0,97906.0,0.01]
[1738754725052,0.10250365,97914.0,97907.0,0.023]
[1738754725395,0.0189518,97913.0,97907.0,0.023]
[1738754725576,0.10250365,97912.0,97907.0,0.023]
[1738754726544,0.10250365,97912.0,97911.0,0.04372889]
[1738754727285,0.03038532,97924.0,97912.0,0.023]
[1738754727551,0.10250365,97923.0,97915.0,0.023]
[1738754727749,0.10250365,97923.0,97916.0,0.00102109]
[1738754727750,0.15191187,97923.0,97916.0,0.00102109]
[1738754728344,0.15191187,97923.0,97914.0,0.023]
[1738754728581,0.15191187,97923.0,97915.0,0.00102109]
[1738754728811,0.15191187,97923.0,97913.0,0.10352458]
[1738754729059,0.15191187,97923.0,97916.0,0.00102109]
[1738754729513,0.0190229,97922.0,97916.0,0.00102109]
[1738754729738,0.10250365,97921.0,97916.0,0.00102109]
[1738754729975,0.10250365,97921.0,97914.0,0.0010211]
[1738754730780,0.10250365,97921.0,97914.0,0.0240211]
[1738754730971,0.0190229,97920.0,97915.0,0.01482746]
[1738754731130,0.10250365,97919.0,97915.0,0.01584856]
[1738754731333,0.10250365,97919.0,97915.0,0.01482746]
[1738754731756,0.10250365,97919.0,97914.0,0.02402111]
[1738754731954,0.0190229,97918.0,97914.0,0.023]
[1738754732137,0.10250365,97917.0,97914.0,0.023]
[1738754733181,0.0190229,97916.0,97914.0,0.023]
[1738754733382,0.10250365,97915.0,97914.0,0.023]
[1738754733912,0.12152655,97915.0,97914.0,0.023]
[1738754735136,0.12152655,97915.0,97914.0,0.04086361]
[1738754736487,0.12152655,97915.0,97914.0,0.023]
[1738754741127,0.15200823,97915.0,97914.0,0.023]
[1738754741633,0.15200823,97915.0,97913.0,0.01173449]
[1738754741862,0.15200823,97915.0,97911.0,0.02072889]
[1738754742526,0.04950458,97914.0,97900.0,0.1121516]
[1738754742635,0.10250365,97913.0,97900.0,0.1121516]
[1738754742850,0.10250365,97913.0,97900.0,0.12371546]
[1738754743703,0.0775,97911.0,97900.0,0.12371546]
[1738754743903,0.10250365,97910.0,97900.0,0.12371546]
[1738754744470,0.04950458,97909.0,97900.0,0.12371546]
[1738754744672,0.10250365,97908.0,97900.0,0.12371546]
[1738754744872,0.10250365,97908.0,97901.0,0.01]
[1738754745508,0.04950458,97907.0,97901.0,0.02349505]
[1738754745699,0.10250365,97906.0,97902.0,0.01]
[1738754745922,0.10250365,97906.0,97903.0,0.01]
[1738754746894,0.0190229,97905.0,97902.0,0.01]
[1738754747027,0.10250365,97904.0,97902.0,0.01]
[1738754747413,0.10250365,97904.0,97900.0,0.02156386]
[1738754747677,0.0190229,97903.0,97902.0,0.01]
[1738754747832,0.12152655,97903.0,97901.0,0.01]
[1738754748055,0.10250365,97902.0,97900.0,0.01156386]
[1738754748232,0.10250365,97902.0,97897.0,0.0001069]
[1738754748439,0.10250365,97902.0,97898.0,0.033]
[1738754748663,0.10250365,97902.0,97901.0,0.0001069]
[1738754748862,0.23190365,97902.0,97901.0,0.0001069]
[1738754749330,0.25092655,97902.0,97901.0,0.0001069]
[1738754752631,0.40414055,97902.0,97901.0,0.0001069]
[1738754753175,0.43465207,97902.0,97901.0,0.0001069]
[1738754757755,0.28143807,97902.0,97901.0,0.0001069]
[1738754757878,0.19823807,97902.0,97901.0,0.0001069]
[1738754758074,0.15203807,97902.0,97901.0,0.0001069]
[1738754758281,0.15203807,97902.0,97901.0,0.1533229]
[1738754758528,0.15203807,97902.0,97901.0,0.20175224]
[1738754758680,0.12152655,97902.0,97901.0,0.20175224]
[1738754759555,0.12152655,97902.0,97901.0,0.1533229]
[1738754759912,0.12152655,97902.0,97901.0,0.0001069]
[1738754760304,0.12152655,97902.0,97901.0,0.1533229]
[1738754761286,0.12152655,97902.0,97901.0,0.0001069]
[1738754765134,0.1520273,97902.0,97901.0,0.0001069]
[1738754765818,0.3857413,97902.0,97901.0,0.0001069]
[1738754766200,0.4312413,97902.0,97901.0,0.0001069]
[1738754774578,0.43887467,97902.0,97901.0,0.0001069]
[1738754776010,0.4312413,97902.0,97901.0,0.0001069]
[1738754777626,0.44400367,97902.0,97901.0,0.0001069]
[1738754779863,0.4516438,97902.0,97901.0,0.0001069]
[1738754781704,0.43888143,97902.0,97901.0,0.0001069]
[1738754789969,0.28566743,97902.0,97901.0,0.0001069]
[1738754790177,0.15966743,97902.0,97901.0,0.18910677]
[1738754790386,0.15966743,97902.0,97901.0,0.1533229]
[1738754791242,0.15966743,97902.0,97901.0,0.16426991]
[1738754801426,0.12916668,97902.0,97901.0,0.16426991]
[1738754802008,0.12916668,97902.0,97901.0,0.01105391]
[1738754803289,0.12916668,97902.0,97901.0,0.16426991]
[1738754803510,0.15972762,97902.0,97901.0,0.16426991]
[1738754807946,0.15972762,97902.0,97901.0,0.01105391]
[1738754809514,0.31294162,97902.0,97901.0,0.01105391]
[1738754809631,0.36024162,97902.0,97901.0,0.0001069]
[1738754821588,0.32968068,97902.0,97901.0,0.0001069]
[1738754823882,0.3602228,97902.0,97901.0,0.0001069]
[1738754827521,0.8709428,97902.0,97901.0,0.0001069]
[1738754828978,0.9470428,97902.0,97901.0,0.0001069]
[1738754829933,0.153241,97885.0,97883.0,0.02069955]
[1738754830163,0.38334465,97885.0,97883.0,0.02069955]
[1738754830794,0.15944378,97885.0,97884.0,0.1533489]
[1738754831000,0.15944378,97885.0,97884.0,0.01870121]
[1738754831210,0.22177286,97885.0,97884.0,0.1533489]
[1738754831426,0.22177286,97885.0,97884.0,0.0001069]
[1738754833061,0.2090088,97885.0,97884.0,0.0001069]
[1738754833263,0.2090088,97885.0,97884.0,0.1533489]
[1738754834098,0.2090088,97885.0,97884.0,0.0001069]
[1738754834309,0.1597088,97885.0,97884.0,0.0001069]
[1738754835222,0.1547088,97885.0,97884.0,0.0001069]
[1738754835430,0.1547088,97885.0,97884.0,0.1533489]
[1738754835641,0.1547088,97885.0,97884.0,0.03392365]
[1738754836205,0.1547088,97885.0,97884.0,0.0001069]
[1738754837897,0.1547088,97885.0,97884.0,0.1533489]
[1738754841822,0.14706867,97885.0,97884.0,0.1533489]
[1738754842593,0.14729317,97885.0,97884.0,0.1533489]
[1738754844681,0.15493026,97885.0,97884.0,0.1533489]
[1738754852655,0.14729317,97885.0,97884.0,0.1533489]
[1738754856499,0.15492959,97885.0,97884.0,0.1533489]
[1738754871597,0.05742594,97885.0,97884.0,0.38672827]
[1738754871808,0.05742594,97885.0,97884.0,0.38570675]
[1738754872189,0.04978952,97885.0,97884.0,0.38570675]
[1738754872638,0.10272815,97885.0,97884.0,0.1533489]
[1738754873812,0.10272815,97885.0,97884.0,0.0001069]
[1738754874776,0.1524019,97885.0,97884.0,0.0001069]
[1738754875426,0.16004391,97885.0,97884.0,0.0001069]
[1738754875874,0.12947545,97885.0,97884.0,0.0001069]
[1738754877605,0.12947545,97885.0,97884.0,0.02370855]
[1738754878226,0.12947545,97885.0,97884.0,0.17695055]
[1738754878427,0.12947545,97885.0,97884.0,0.02370855]
[1738754878799,0.12947545,97885.0,97884.0,0.0001069]
[1738754888005,0.16004139,97885.0,97884.0,0.0001069]
[1738754893603,0.16004139,97885.0,97884.0,0.1533489]
[1738754897645,0.16004139,97885.0,97884.0,0.0001069]
[1738754900377,0.16004139,97885.0,97884.0,0.1533489]
[1738754900585,0.16004139,97885.0,97884.0,0.21270655]
[1738754901958,0.16004139,97885.0,97884.0,0.0001069]
[1738754903827,0.16004139,97885.0,97884.0,0.1533489]
[1738754904085,0.16004139,97885.0,97884.0,0.0001069]
[1738754906226,0.12947545,97885.0,97884.0,0.0001069]
[1738754906564,0.12947545,97885.0,97884.0,0.1533489]
[1738754907111,0.12947545,97885.0,97884.0,0.21270735]
[1738754912592,0.12947545,97885.0,97884.0,0.1533489]
[1738754912886,0.12947545,97885.0,97884.0,0.0001069]
[1738754914290,0.16005504,97885.0,97884.0,0.0001069]
[1738754915609,0.17228706,97885.0,97884.0,0.0001069]
[1738754925843,0.17228706,97885.0,97884.0,0.1533489]
[1738754926063,0.17228706,97885.0,97884.0,0.21270695]
[1738754926470,0.17228706,97885.0,97884.0,0.38570695]
[1738754926471,0.06978341,97885.0,97884.0,0.38570695]
[1738754926670,0.06978341,97885.0,97884.0,0.39570695]
[1738754927233,0.03920382,97885.0,97884.0,0.39570695]
[1738754928168,0.03920382,97885.0,97884.0,0.71600695]
[1738754928373,0.01932979,97885.0,97884.0,0.71600695]
[1738754928578,0.0002245,97885.0,97884.0,0.71600695]
[1738754933962,0.0002245,97885.0,97884.0,0.6566489]
[1738754934226,0.0002245,97885.0,97884.0,0.6466489]
[1738754935095,0.0002245,97885.0,97884.0,0.6566489]
[1738754936981,0.0002245,97885.0,97884.0,0.6466489]
[1738754937606,0.0002245,97885.0,97884.0,0.6566489]
[1738754937765,0.0002245,97885.0,97884.0,0.74915255]
[1738754937973,0.10272815,97885.0,97884.0,0.3033489]
[1738754938185,0.22822815,97885.0,97884.0,0.3033489]
[1738754939876,0.22822815,97885.0,97884.0,0.1533489]
[1738754940284,0.24729598,97885.0,97884.0,0.1533489]
[1738754940640,0.24729598,97885.0,97884.0,0.0001069]
[1738754941247,0.27780395,97885.0,97884.0,0.1533489]
[1738754942558,0.27780395,97885.0,97884.0,0.0001069]
[1738754944201,0.27780395,97885.0,97884.0,0.1533489]
[1738754944846,0.28542993,97885.0,97884.0,0.1533489]
[1738754945064,0.28542993,97885.0,97884.0,0.21270685]
[1738754945278,0.20922993,97885.0,97884.0,0.21270685]
[1738754946340,0.17872196,97885.0,97884.0,0.21270685]
[1738754946776,0.17109598,97885.0,97884.0,0.21270685]
[1738754949004,0.15202815,97885.0,97884.0,0.21270685]
[1738754949882,0.23232815,97885.0,97884.0,0.0001069]
[1738754951119,0.28190813,97885.0,97884.0,0.0001069]
[1738754951886,0.28953568,97885.0,97884.0,0.0001069]
[1738754952039,0.28953568,97885.0,97884.0,0.1533489]
[1738754952746,0.28953568,97885.0,97884.0,0.0001069]
[1738754957119,0.28953568,97885.0,97884.0,0.1533489]
[1738754958627,0.28953568,97885.0,97884.0,0.0001069]
[1738754959982,0.28953568,97885.0,97884.0,0.1533489]
[1738754962331,0.28953568,97885.0,97884.0,0.0001069]
[1738754963171,0.28953568,97885.0,97884.0,0.1533489]
[1738754963581,0.28953568,97885.0,97884.0,0.0001069]
[1738754964291,0.28953568,97885.0,97884.0,0.1533489]
[1738754970001,0.28953568,97885.0,97884.0,0.0001069]
[1738754970201,0.44277668,97885.0,97884.0,0.0001069]
[1738754971638,0.45498076,97885.0,97884.0,0.0001069]
[1738754973208,0.48554246,97885.0,97884.0,0.0001069]
[1738754974275,0.49830558,97885.0,97884.0,0.0001069]
[1738754974500,0.46774388,97885.0,97884.0,0.0001069]
[1738754977139,0.31450288,97885.0,97884.0,0.0001069]
[1738754977336,0.46774388,97885.0,97884.0,0.0001069]
[1738754978487,0.31450288,97885.0,97884.0,0.0001069]
[1738754978666,0.23420288,97885.0,97884.0,0.1533489]
[1738754979785,0.23420288,97885.0,97884.0,0.0001069]
[1738754979786,0.46274388,97885.0,97884.0,0.0001069]
[1738754980205,0.30950288,97885.0,97884.0,0.0001069]
[1738754980778,0.29673976,97885.0,97884.0,0.0001069]
[1738754981345,0.29673976,97885.0,97884.0,0.1533489]
[1738754981609,0.29673976,97885.0,97884.0,0.21268385]
[1738754983499,0.22143976,97885.0,97884.0,0.21268385]
[1738754984922,0.22143976,97885.0,97884.0,0.1533489]
[1738754985321,0.15202815,97885.0,97884.0,0.1533489]
[1738754986165,0.17190466,97885.0,97884.0,0.1533489]
[1738754986364,0.22159706,97885.0,97884.0,0.1533489]
[1738754992231,0.22159706,97885.0,97884.0,0.0001069]
[1738754993128,0.22159706,97885.0,97884.0,0.1533489]
[1738754993551,0.25218109,97885.0,97884.0,0.1533489]
[1738754994933,0.22159706,97885.0,97884.0,0.1533489]
[1738754997048,0.20936536,97885.0,97884.0,0.1533489]
[1738754997197,0.20936536,97885.0,97884.0,0.0001069]
[1738755003383,0.22159419,97885.0,97884.0,0.0001069]
[1738755007467,0.20936536,97885.0,97884.0,0.0001069]
[1738755009392,0.20936536,97885.0,97884.0,0.1533489]
[1738755009527,0.20936536,97885.0,97884.0,0.03900925]
[1738755010253,0.20936536,97885.0,97884.0,0.0001069]
[1738755010876,0.20936536,97885.0,97884.0,0.1533489]
[1738755011038,0.20172055,97885.0,97884.0,0.0001069]
[1738755011241,0.15202815,97885.0,97884.0,0.0001069]
[1738755011461,0.20172092,97885.0,97884.0,0.0001069]
[1738755011893,0.20936596,97885.0,97884.0,0.0001069]
[1738755014030,0.17878579,97885.0,97884.0,0.0001069]
[1738755016138,0.20937242,97885.0,97884.0,0.0001069]
[1738755019061,0.22160838,97885.0,97884.0,0.0001069]
[1738755019561,0.29760838,97885.0,97884.0,0.0001069]
[1738755019764,0.45084938,97885.0,97884.0,0.0001069]
[1738755020796,0.29760838,97885.0,97884.0,0.0001069]
[1738755021411,0.45084938,97885.0,97884.0,0.0001069]
[1738755022055,0.46361291,97885.0,97884.0,0.0001069]
[1738755022476,0.97433291,97885.0,97884.0,0.0001069]
[1738755023710,1.02541391,97885.0,97875.0,0.1471698]
[1738755023909,1.02541391,97885.0,97875.0,0.0735849]
[1738755023910,0.82109191,97885.0,97875.0,0.0735849]
[1738755024124,0.153245,97883.0,97876.0,0.0158072]
[1738755024329,0.10250365,97882.0,97876.0,0.0158072]
[1738755024537,0.10250365,97882.0,97880.0,0.153248]
[1738755025542,0.04969923,97881.0,97880.0,0.153248]
[1738755025742,0.15984792,97881.0,97880.0,0.153248]
[1738755027848,0.12926129,97881.0,97880.0,0.153248]
[1738755028669,0.12926129,97881.0,97880.0,0.21049052]
[1738755030087,0.12926129,97881.0,97873.0,0.01050217]
[1738755030088,0.20826129,97881.0,97873.0,0.01050217]
[1738755030288,0.20826129,97881.0,97876.0,0.153253]
[1738755030289,0.10250365,97880.0,97876.0,0.153253]
[1738755030715,0.10250365,97880.0,97874.0,0.204344]
[1738755030915,0.10250365,97880.0,97876.0,0.153254]
[1738755031119,0.00764504,97879.0,97876.0,0.153254]
[1738755031322,0.12161625,97878.0,97872.0,0.01057637]
[1738755031498,0.12161625,97878.0,97874.0,0.153257]
[1738755031698,0.12161625,97878.0,97872.0,0.15]
[1738755031925,0.12161625,97878.0,97871.0,0.45299127]
[1738755032343,0.12161625,97878.0,97872.0,0.204346]
[1738755032673,0.04968126,97877.0,97872.0,0.204346]
[1738755032875,0.10250365,97876.0,97873.0,0.153259]
[1738755033090,0.10250365,97876.0,97874.0,0.153257]
[1738755033822,0.0191126,97875.0,97874.0,0.153257]
[1738755034029,0.12161625,97875.0,97872.0,0.15326]
[1738755034248,0.10250365,97874.0,97872.0,0.15326]
[1738755034432,0.10250365,97874.0,97873.0,0.153259]
[1738755036100,0.12160878,97874.0,97873.0,0.153259]
[1738755037992,0.1292508,97874.0,97873.0,0.153259]
[1738755038198,0.1292508,97874.0,97873.0,0.1533658]
[1738755038377,0.15981838,97874.0,97873.0,0.21270223]
[1738755039005,0.15981838,97874.0,97873.0,0.1533658]
[1738755044531,0.15981838,97874.0,97873.0,0.0001068]